Workbook

Sheet 권별 진도
A1: 권별 진도표
J2: 2013.03.06
A3: 권수 | B3: 쪽수 | C3: 분량 | D3: 입력자 | E3: v1 작업 진도 | F3: v1 잔여량 | G3: v2 | H3: v3 | I3: v4 | J3: v5 | K3: 비고
A4: 26 | B4: 1-273 | C4: =273-1 -> 272 | D4: 심경순 | E4: O | G4: 이혜령
B5: 277-596 | C5: =534-277 -> 257 | D5: 이혜령 | E5: 534 | F5: =596-534 -> 62
B6: 597-888 | C6: =888-597 -> 291 | D6: 김정화 | E6: O | G6: 이혜령
A7: 27 | B7: 3-266 | C7: =266-3 -> 263 | D7: 송정현 | E7: 118 | F7: =266-E7 -> 148 | G7: 이혜령
B8: 267-386 | C8: =386-267 -> 119 | D8: 김가희 | E8: O
B9: 387-572 | C9: =572-387 -> 185 | D9: 김유빈 | E9: 458 | F9: =572-E9 -> 114
B10: 573-584 | C10: =584-573 -> 11
B11: 585-724 | C11: =724-585 -> 139
B12: 725-852 | C12: =852-725 -> 127
B13: 853-860 | C13: =860-853 -> 7
B14: 861-878 | C14: =878-861 -> 17
B15: 879-980 | C15: =980-879 -> 101
B16: 981-994 | C16: =994-981 -> 13
A17: 28 | B17: 3-52 | C17: =52-3 -> 49 | D17: 심경순 | E17: O | G17: 이혜령
B18: 53-102 | C18: =102-53 -> 49 | D18: 이혜령 | E18: O
B19: 103-154 | C19: =154-103 -> 51 | D19: 김정화 | E19: O | G19: 이혜령
B20: 155-200 | C20: =200-155 -> 45 | D20: 송정현 | E20: O | G20: 이혜령
B21: 205-255 | C21: =255-205 -> 50 | D21: 김가희 | E21: O
B22: 256-305 | C22: =305-256 -> 49 | D22: 김유빈 | E22: O
B23: 306-357 | C23: =357-306 -> 51 | D23: 안성은 | E23: O
B24: 358-618 | C24: =618-358 -> 260 | D24: 조수연 | E24: 553 | F24: =618-E24 -> 65
B25: 619-637 | C25: =637-619 -> 18 | D25: 김가희 | E25: O
B26: 639-669 | C26: =669-639 -> 30 | D26: 김유빈 | E26: O
B27: 673-836 | C27: =836-673 -> 163 | D27: 안성은 | E27: 800 | F27: =836-800 -> 36
B28: 837-857 | C28: =857-837 -> 20 | D28: 김가희 | E28: O
B29: 859-928 | C29: =928-859 -> 69 | D29: 김유빈 | E29: O
B30: 929-948 | C30: =948-929 -> 19 | D30: 김가희 | E30: O

Sheet 권별 진도표
A1: 권수 | B1: 쪽수 | C1: 입력자(v1) | D1: v2 | E1: v3 | F1: v4 | G1: v5 | H1: 비고
A2: 26 | B2: 1-68 | C2: 심경순 | D2: 심경순
B3: 69-126 | C3: 심경순 | D3: 심경순
B4: 127-186 | C4: 심경순 | D4: 심경순
B5: 187-238 | C5: 심경순 | D5: 심경순
B6: 239-273 | C6: 심경순 | D6: 심경순
B7: 277-317 | C7: 이혜령
B8: 318-358 | C8: 이혜령
B9: 359-398 | C9: 이혜령
B10: 399-439 | C10: 이혜령
B11: 440-534 | C11: 이혜령
B12: 597-654 | C12: 김정화 | D12: 김정화
B13: 655-697 | C13: 김정화 | D13: 김정화
B14: 698-737 | C14: 김정화
B15: 738-763 | C15: 김정화
B16: 764-794 | C16: 김정화
A17: 27 | B17: 3-49 | C17: 송정현 | D17: 송정현
B18: 49-84 | C18: 송정현
B19: 85-118 | C19: 송정현
B20: 267-287 | C20: 김가희
B21: 288-308 | C21: 김가희
B22: 309-329 | C22: 김가희
B23: 330-350 | C23: 김가희
B24: 351-371 | C24: 김가희
B25: 387-398 | C25: 김유빈
B26: 399-418 | C26: 김유빈
B27: 419-438 | C27: 김유빈
A28: 28 | B28: 3-52 | C28: 심경순 | D28: 심경순
B29: 53-102 | C29: 이혜령 | D29: 이혜령
B30: 103-154 | C30: 김정화 | D30: 김정화
B31: 155-200 | C31: 송정현
B32: 205-255 | C32: 김가희
B33: 256-305 | C33: 김유빈
B34: 306-357 | C34: 안성은
B35: 358-407 | C35: 조수연
B36: 408-425 | C36: 조수연
B37: 426-466 | C37: 조수연
B38: 467-484 | C38: 조수연
B39: 486-507 | C39: 조수연
B40: 508-527 | C40: 조수연
B41: 619-637 | C41: 김가희
B42: 639-669 | C42: 김유빈
B43: 673-692 | C43: 안성은
B44: 693-712 | C44: 안성은
B45: 713-725 | C45: 안성은
B46: 726-745 | C46: 안성은
B47: 746-760 | C47: 안성은
B48: 761-780 | C48: 안성은
B49: 781-800 | C49: 안성은
B50: 837-857 | C50: 김가희
B51: 859-879 | C51: 김유빈
B52: 880-899 | C52: 김유빈
B53: 900-919 | C53: 김유빈
B54: 920-928 | C54: 김유빈
B55: 929-948 | C55: 김가희

Sheet Sheet3
